bitfinex-derivatives/quotes_ETHF0:USTF0_20250430
["timestamp","ask_amount","ask_price","bid_price","bid_amount"]
[1746030970174,1.1363,1760.0,1759.9,1.14090984]
[1746030970375,1.1363,1760.0,1759.9,0.00456984]
[1746030970769,2.7708,1760.0,1759.9,0.00456984]
[1746030970972,2.7708,1760.0,1759.9,1.14093984]
[1746030971170,6.5988,1760.0,1759.9,1.14093984]
[1746030971381,6.5988,1760.0,1759.9,0.00456984]
[1746030971882,6.5988,1760.0,1759.9,1.14093984]
[1746030972282,2.7708,1760.0,1759.9,0.00456984]
[1746030973276,6.5988,1760.0,1759.9,0.00456984]
[1746030973776,9.1645,1760.0,1759.9,1.14093984]
[1746030973983,3.828,1760.0,1759.9,1.14093984]
[1746030974184,3.703,1760.1,1760.0,1.1363]
[1746030974383,3.703,1760.1,1760.0,4.5338]
[1746030974577,4.83924,1760.1,1760.0,4.5338]
[1746030974975,1.13624,1760.1,1760.0,4.5338]
[1746030975284,6.44472,1760.2,1760.1,1.13624]
[1746030975580,6.44472,1760.2,1760.1,2.85054]
[1746030975883,3.703,1760.2,1760.1,2.85054]
[1746030976082,73.74388,1760.4,1760.1,1.7143]
[1746030976283,4.83911,1760.3,1760.2,2.81477]
[1746030978287,6.47841,1760.3,1760.2,2.81477]
[1746030979384,6.47841,1760.3,1760.2,1.6786]
[1746030979587,6.47841,1760.3,1760.2,2.81477]
[1746030980588,1.13624,1760.1,1760.0,1.6832]
[1746030980790,1.13624,1760.1,1760.0,4.42856]
[1746030981187,3.60054,1760.1,1760.0,4.42856]
[1746030981795,1.1363,1760.0,1759.9,1.14093984]
[1746030981984,6.5098,1760.0,1759.9,1.14093984]
[1746030982792,5.3735,1760.0,1759.9,1.14093984]
[1746030982990,3.702,1760.0,1759.9,2.86133984]
[1746030984291,4.8383,1760.0,1759.9,2.86133984]
[1746030985387,5.7045,1760.0,1759.9,2.86133984]
[1746030986690,1.13662,1759.5,1759.4,6.96661]
[1746030986998,4.83955,1759.7,1759.6,1.13656]
[1746030987391,7.42395,1759.7,1759.6,1.13656]
[1746030987795,6.2874,1759.7,1759.6,1.13656]
[1746030988390,3.703,1759.7,1759.6,1.13656]
[1746030988592,3.703,1759.7,1759.6,2.00666]
[1746030988789,3.703,1759.7,1759.6,3.60516]
[1746030989299,4.8395,1759.7,1759.6,3.60516]
[1746030989593,3.703,1759.7,1759.6,3.60516]
[1746030990894,4.8395,1759.7,1759.6,3.60516]
[1746030991097,3.703,1759.7,1759.6,3.60516]
[1746030991297,4.8395,1759.7,1759.6,3.60516]
[1746030992198,1.13656,1759.6,1759.5,4.34437]
[1746030992385,3.56026,1759.6,1759.5,4.34437]
[1746030992590,3.56026,1759.6,1759.5,3.2078]
[1746030992991,1.13682,1759.2,1759.1,5.20274]
[1746030993190,1.13682,1759.2,1759.1,4.34464]
[1746030993689,2.74152,1759.2,1759.1,4.34464]
[1746030993895,2.74152,1759.2,1759.1,6.79454]
[1746030995000,1.6047,1759.2,1759.1,6.79454]
[1746030995496,2.74152,1759.2,1759.1,6.79454]
[1746030996395,4.5748,1759.3,1759.2,1.13682]
[1746030996592,3.703,1759.3,1759.2,2.78292]
[1746030996797,3.703,1759.3,1759.2,3.62522]
[1746030997095,1.6965,1759.5,1759.4,1.13669]
[1746030997298,6.53512,1759.5,1759.4,1.13669]
[1746030997694,6.53512,1759.5,1759.4,3.69659]
[1746030998802,2.8057,1759.6,1759.5,1.13662]
[1746030999101,6.5087,1759.6,1759.5,2.88492]
[1746030999298,1.7189,1759.8,1759.5,8.93422]
[1746030999496,6.9108,1759.9,1759.8,1.13643]
[1746030999702,3.703,1759.9,1759.8,1.13643]
[1746030999890,2.84148,1760.1,1760.0,1.1363]
[1746031000092,11.17555329,1760.2,1760.1,1.13624]
[1746031000297,11.17555329,1760.2,1760.1,3.71574]
[1746031000501,8.60872329,1760.2,1760.1,3.71574]
[1746031000894,7.47255329,1760.2,1760.1,3.71574]
[1746031001102,1.64839842,1760.2,1760.1,52.72354]
[1746031002096,1.64839842,1760.2,1760.1,47.72354]
[1746031002298,1.13606,1760.4,1760.3,1.13611]
[1746031002500,1.7494,1760.4,1760.3,1.13611]
[1746031003805,3.702,1760.5,1760.4,1.13604]
[1746031004105,1.13607,1760.4,1760.3,1.13606]
[1746031004402,1.5981,1760.4,1760.2,1.7258]
[1746031004600,2.73419,1760.4,1760.3,1.13611]
[1746031004901,3.702,1760.5,1760.4,1.13604]
[1746031005696,3.58946,1760.6,1760.5,1.13598]
[1746031005898,4.83796,1760.6,1760.5,1.13598]
[1746031007800,3.702,1760.6,1760.5,1.13598]
[1746031008008,3.702,1760.6,1760.5,4.34378]
[1746031008309,3.702,1760.8,1760.7,1.13585]
[1746031008806,3.702,1760.8,1760.7,2.85545]
[1746031009008,4.83779,1760.8,1760.7,2.85545]
[1746031009209,6.46359,1760.8,1760.7,2.85545]
[1746031009695,6.46359,1760.8,1760.7,1.7196]
[1746031010100,10.29159,1760.8,1760.7,2.85545]
[1746031010999,9.1558,1760.8,1760.7,2.85545]
[1746031011199,1.13577,1760.9,1760.8,1.13579]
[1746031011399,4.83677,1760.9,1760.8,2.82699]
[1746031011900,3.701,1760.9,1760.8,2.82699]
[1746031012101,4.83672,1760.9,1760.8,2.82699]
[1746031012303,2.84971,1761.0,1760.9,1.13572]
[1746031012606,3.701,1761.5,1761.4,1.1354]
[1746031013001,0.8597,1761.6,1761.5,1.13533]
[1746031013307,4.5607,1761.6,1761.5,2.89763]
[1746031014206,6.1838,1761.6,1761.5,2.89763]
[1746031016602,1.6231,1761.6,1761.5,2.89763]
[1746031016800,4.583,1761.7,1761.6,1.13527]
[1746031017001,6.2027,1761.7,1761.6,2.80227]
[1746031017405,5.3197,1761.7,1761.6,2.80227]
[1746031017608,4.83519,1761.8,1761.7,1.13521]
[1746031017806,6.45489,1761.8,1761.7,1.667]
[1746031018010,1.13521,1761.7,1761.6,1.13522]
[1746031018204,2.75491,1761.7,1761.6,1.13522]
[1746031019505,1.13527,1761.6,1761.5,2.80231]
[1746031019705,2.78647,1761.6,1761.5,2.80231]
[1746031020414,1.13533,1761.5,1761.4,10.1732]
[1746031020610,1.6512,1761.5,1761.4,10.1732]
[1746031020815,1.13526,1761.7,1761.6,1.13527]
[1746031021017,2.78646,1761.7,1761.6,1.13527]
[1746031021207,5.4792,1761.7,1761.6,1.13527]
[1746031021411,5.48259252,1761.7,1761.6,1.13527]
[1746031021912,3.83139252,1761.7,1761.6,1.13527]
[1746031022109,3.83139252,1761.7,1761.6,4.34307]
[1746031022413,0.00339252,1761.7,1761.6,9.34307]
[1746031023516,0.00339252,1761.7,1761.6,11.03507]
[1746031024013,2.52e-06,1761.7,1761.6,11.03507]
[1746031025818,3.699,1762.6,1761.9,2.8377]
[1746031026017,6.47945,1762.6,1762.5,1.13469]
[1746031027319,10.30745,1762.6,1762.5,1.13469]
[1746031028105,6.60845,1762.6,1762.5,1.13469]
[1746031028410,10.30645,1762.6,1762.5,1.13469]
[1746031029307,9.1718,1762.6,1762.5,1.13469]
[1746031029512,10.30643,1762.6,1762.5,1.13469]
[1746031030009,3.828,1762.6,1762.5,1.13469]
[1746031030207,5.4202,1762.8,1762.7,1.13456]
[1746031030405,6.5547,1762.8,1762.7,1.13456]
[1746031031015,5.4202,1762.8,1762.7,1.13456]
[1746031031217,9.2482,1762.8,1762.7,1.13456]
[1746031031513,3.828,1762.8,1762.7,1.13456]
[1746031031908,3.828,1762.8,1762.7,2.85586]
[1746031032108,2.4606,1762.9,1762.7,1.7213]
[1746031032315,2.4606,1762.9,1762.8,43.6558]
[1746031033120,6.2886,1762.9,1762.8,43.6558]
[1746031034919,3.828,1762.9,1762.8,46.8636]
[1746031035114,4.5808,1763.1,1762.8,46.8636]
[1746031035421,4.5808,1763.1,1763.0,1.13437]
[1746031036021,3.697,1763.1,1763.0,2.74897]
[1746031036219,7.525,1763.1,1763.0,2.74897]
[1746031036616,3.828,1763.1,1763.0,2.74897]
[1746031037819,3.828,1763.1,1763.0,5.95677]
[1746031038219,5.295,1763.2,1763.1,1.1343]
[1746031038416,1.599,1763.2,1763.1,2.7492]
[1746031038613,0.852,1763.3,1763.2,1.13424]
[1746031038914,0.852,1763.3,1763.2,5.95694]
[1746031039114,4.68,1763.3,1763.2,5.95694]
[1746031040124,3.828,1763.3,1763.2,5.95694]
[1746031043122,2.6284,1763.5,1763.4,1.13411]
[1746031043825,0.86,1763.7,1763.6,1.13398]
[1746031044015,4.555,1763.7,1763.6,1.13398]
[1746031044220,5.68892,1763.7,1763.6,1.13398]
[1746031044520,7.45452,1763.7,1763.6,1.13398]
[1746031044722,6.3206,1763.7,1763.6,1.13398]
[1746031045114,10.1486,1763.7,1763.6,1.13398]
[1746031046127,3.828,1763.7,1763.6,1.13398]
[1746031046629,3.828,1763.7,1763.6,4.34178]
[1746031047223,4.5035,1764.0,1763.7,2.83467]
[1746031047431,2.5281,1764.0,1763.9,1.13379]
[1746031047724,0.849,1764.1,1764.0,1.13373]
[1746031047927,1.7196,1764.2,1764.1,1.13366]
[1746031048123,1.7196,1764.2,1764.1,2.74146]
[1746031048321,5.5476,1764.2,1764.1,2.74146]
[1746031050727,3.828,1764.2,1764.1,2.74146]
[1746031053229,1.62025119,1764.2,1764.1,2.74146]
[1746031060925,1.62025119,1764.2,1764.1,1.13366]
[1746031061532,3.26105119,1764.2,1764.1,1.13366]
[1746031062420,1.62025119,1764.2,1764.1,2.89776]
[1746031063932,1.62025119,1764.2,1764.1,43.69776]
[1746031065333,1.62025119,1764.2,1764.1,41.93366]
[1746031065535,1.62025119,1764.2,1764.1,1.13366]
[1746031065731,2.44245119,1764.2,1764.1,1.13366]
[1746031065934,4.12415119,1764.2,1764.1,2.83436]
[1746031066428,1.62025119,1764.2,1764.1,2.83436]
[1746031066633,1.62025119,1764.2,1764.1,3.69866]
[1746031067630,0.41370119,1764.2,1764.1,3.69866]
[1746031068230,3.374,1764.4,1764.3,1.13353]
[1746031068428,3.374,1764.4,1764.3,4.34133]
[1746031069127,7.202,1764.4,1764.3,4.34133]
[1746031069327,7.202,1764.4,1764.3,6.04513]
[1746031071333,2.68713,1764.4,1764.3,6.04513]
[1746031071529,3.4181,1764.7,1764.6,1.13334]
[1746031071835,3.4181,1764.7,1764.6,4.34114]
[1746031072228,7.2461,1764.7,1764.6,4.34114]
[1746031074235,3.828,1764.7,1764.6,4.34114]
[1746031074429,3.828,1764.7,1764.6,5.96124]
[1746031074734,2.52693,1764.7,1764.6,5.96124]
[1746031074931,0.99996,1764.7,1764.6,11.79124]
[1746031075131,1.6957,1764.9,1764.6,11.79124]
[1746031075132,1.7565,1764.8,1764.7,1.13328]
[1746031075835,1.7565,1764.8,1764.7,2.75518]
[1746031076031,1.7565,1764.8,1764.7,1.13328]
[1746031076232,5.5845,1764.8,1764.7,1.13328]
[1746031077137,5.5845,1764.8,1764.7,2.81408]
[1746031078140,1.7565,1764.8,1764.7,6.02188]
[1746031078539,1.6957,1764.9,1764.8,1.13321]
[1746031078739,0.8589,1764.9,1764.8,2.81401]
[1746031079043,1.6329,1765.0,1764.9,1.13315]
[1746031079235,1.6329,1765.0,1764.9,6.02175]
[1746031080236,5.4609,1765.0,1764.9,6.02175]
[1746031081647,5.4609,1765.0,1764.9,46.82175]
[1746031081840,2.41361,1765.0,1764.9,46.82175]
[1746031082339,4.61933,1765.4,1765.3,1.13289]
[1746031082531,1.7486,1765.4,1765.3,1.13289]
[1746031082941,1.7486,1765.4,1765.3,4.34069]
[1746031083246,0.88,1765.7,1765.6,1.1327]
[1746031083542,0.88,1765.7,1765.6,4.3405]
[1746031083739,0.88,1765.7,1765.4,3.2078]
[1746031083945,0.88,1765.7,1765.6,1.1327]
[1746031084243,0.88,1765.7,1764.5,3.2078]
[1746031084244,17.6058,1765.7,1764.5,3.2078]
[1746031084446,1.13322,1764.8,1764.5,3.2078]
[1746031084647,0.8632,1764.7,1764.6,1.13334]
[1746031084940,0.8632,1764.7,1764.4,40.8]
[1746031085248,4.6912,1764.7,1764.4,41.93342]
[1746031085447,4.6912,1764.7,1764.4,40.8]
[1746031085644,4.6912,1764.7,1764.6,1.13334]
[1746031085948,3.828,1764.7,1764.6,1.13334]
[1746031086140,3.828,1764.7,1764.6,4.55224]
[1746031086939,3.828,1764.7,1764.6,1.95524]
[1746031088442,4.96128,1764.7,1764.6,0.8219]
[1746031088649,2.83336,1764.6,1764.1,0.8355]
[1746031088945,0.8122,1764.5,1764.4,1.13347]
[1746031089143,6.5612,1764.5,1764.4,1.13347]
[1746031089346,7.6946,1764.5,1764.4,1.13347]
[1746031089545,5.7736,1764.5,1764.4,1.13347]
[1746031089746,4.6402,1764.5,1764.4,1.13347]
[1746031090051,3.828,1764.5,1764.4,1.13347]
[1746031090548,3.828,1764.5,1764.4,2.75247]
[1746031091043,1.17323,1764.5,1764.4,11.54347]
[1746031091252,6.5989,1764.6,1764.5,1.1334]
[1746031091547,6.5989,1764.6,1764.5,54.2738]
[1746031091747,6.5989,1764.6,1764.5,59.2738]
[1746031092154,2.7709,1764.6,1764.5,54.2738]
[1746031092746,0.85,1764.6,1764.5,54.2738]
[1746031093252,4.678,1764.6,1764.5,54.2738]
[1746031094251,0.85,1764.6,1764.5,54.2738]
[1746031096157,4.678,1764.6,1764.5,54.2738]
[1746031097157,0.85,1764.6,1764.5,54.2738]
[1746031098151,4.678,1764.6,1764.5,54.2738]
[1746031099351,1.9209,1764.7,1764.5,54.2738]
[1746031099352,0.8421,1765.0,1764.5,53.1404]
[1746031099553,3.791,1765.5,1764.8,3.2078]
[1746031099753,0.8421,1765.5,1765.4,1.13283]
[1746031099951,1.3513,1765.5,1765.4,1.13283]
[1746031100154,5.1793,1765.5,1765.4,1.13283]
[1746031101658,4.3372,1765.5,1765.4,4.34063]
[1746031101857,4.3372,1765.5,1765.4,6.06883]
[1746031102758,1.56363,1765.5,1765.4,16.89883]
[1746031102952,0.23024,1765.5,1765.4,16.89883]
[1746031103158,0.23024,1765.5,1765.4,52.69883]
[1746031103753,1e-05,1765.5,1765.4,52.69883]
[1746031103953,5.92354438,1765.6,1765.5,1.13276]
[1746031104147,7.24714438,1765.6,1765.5,2.76616]
[1746031104657,1.07224438,1765.6,1765.5,2.76616]
[1746031104858,4.38e-06,1765.6,1765.5,2.76616]
[1746031105256,8.18609732,1765.7,1765.6,1.1327]
[1746031105457,8.18609732,1765.7,1765.6,8.1305]
[1746031105854,8.18609732,1765.7,1765.6,48.9305]
[1746031106154,12.01409732,1765.7,1765.6,48.9305]
[1746031106460,12.02138773,1765.7,1765.6,48.9305]
[1746031106760,3.83529041,1765.7,1765.6,48.9305]
[1746031107056,1.89255041,1765.7,1765.6,48.9305]
[1746031107259,1.7188,1766.2,1766.1,1.13238]
[1746031107463,1.7188,1766.2,1766.1,4.34018]
[1746031107663,6.7188,1766.2,1766.1,4.34018]
[1746031107963,6.7188,1766.2,1766.1,1.13238]
[1746031108159,5.5468,1766.2,1766.1,1.13238]
[1746031108458,11.67911,1766.2,1766.1,1.13238]
[1746031108663,10.5468,1766.2,1766.1,1.13238]
[1746031109664,5.5468,1766.2,1766.1,1.13238]
[1746031110163,6.67911,1766.2,1766.1,1.13238]
[1746031110666,5.5468,1766.2,1766.1,1.13238]
[1746031110860,6.67911,1766.2,1766.1,1.13238]
[1746031111065,5.5468,1766.2,1766.1,1.13238]
[1746031111464,6.67911,1766.2,1766.1,1.13238]
[1746031111759,11.67911,1766.2,1766.1,1.13238]
[1746031111965,1.1324,1766.1,1766.0,1.1324]
[1746031112166,8.35092,1766.1,1766.0,1.13244]
[1746031113464,7.2185,1766.1,1766.0,1.13244]
[1746031114567,8.35088,1766.1,1766.0,1.13244]
[1746031116571,7.2185,1766.1,1766.0,1.13244]
[1746031117574,6.3508,1766.1,1766.0,1.13244]
[1746031117787,6.3508,1766.1,1766.0,2.81134]
[1746031118873,3.828,1766.1,1766.0,2.81134]
[1746031119073,3.828,1766.1,1766.0,3.61344]
[1746031119276,2.4972,1766.3,1766.2,1.13231]
[1746031119464,2.4972,1766.3,1766.2,4.34011]
[1746031119967,1.1322,1766.4,1766.2,6.05871]
[1746031120167,8.10988,1766.6,1766.5,1.13212]
[1746031120477,3.77,1766.6,1766.5,1.13212]
[1746031121266,7.598,1766.6,1766.5,1.13212]
[1746031123879,7.598,1766.6,1766.4,4.33996]
[1746031123880,12.598,1766.6,1766.4,4.33996]
[1746031124171,1.13212,1766.5,1766.4,3.2078]
[1746031124677,8.73011,1766.6,1766.5,1.13212]
[1746031125073,13.73011,1766.6,1766.5,1.13212]
[1746031125272,7.598,1766.6,1766.4,3.2078]
[1746031125473,1.13212,1766.5,1766.4,4.33992]
[1746031125978,1.99532,1766.5,1766.4,1.13212]
[1746031126167,5.82332,1766.5,1766.4,1.13212]
[1746031126367,5.82337,1766.5,1766.2,3.2078]
[1746031126578,5.82337,1766.5,1766.4,1.13218]
[1746031127280,1.13223,1766.4,1766.3,1.13222]
[1746031127481,5.82337,1766.5,1766.4,1.13218]
[1746031127680,1.13225,1766.4,1766.3,1.13222]
[1746031128084,4.96025,1766.4,1766.3,1.13222]
[1746031128584,3.828,1766.4,1766.3,1.13222]
[1746031129688,3.828,1766.4,1766.3,3.66122]
[1746031131786,3.828,1766.4,1766.3,2.85852]
[1746031133986,3.828,1766.4,1766.3,1.13222]
[1746031134185,3.828,1766.4,1766.3,2.81272]
[1746031135286,1.7193,1766.7,1766.6,1.13206]
[1746031136187,5.5473,1766.7,1766.6,1.13206]
[1746031138587,6.67929,1766.7,1766.6,1.13206]
[1746031140189,11.67929,1766.7,1766.6,1.13206]
[1746031140393,1.13218,1766.5,1766.4,1.13212]
[1746031140992,0.8553,1766.5,1766.4,1.13212]
[1746031141195,4.6833,1766.5,1766.4,1.13212]
[1746031141502,6.2913,1766.5,1766.4,1.13212]
[1746031141790,6.2913,1766.5,1766.4,2.83832]
[1746031142093,3.828,1766.5,1766.4,1.13212]
[1746031142291,6.2913,1766.5,1766.4,1.13212]
[1746031142480,7.42342,1766.5,1766.4,1.13212]
[1746031143895,14.4991,1766.5,1766.0,5.83]
[1746031144087,1.13244,1766.1,1766.0,1.1324]
[1746031144690,4.45375,1766.2,1766.1,1.13238]
[1746031144886,3.769,1766.4,1766.2,2.83074]
[1746031145089,7.597,1766.4,1766.3,1.13225]
[1746031145289,9.55198,1766.4,1766.3,1.13225]
[1746031145489,8.4198,1766.4,1766.3,1.13225]
[1746031145692,7.597,1766.4,1766.3,2.76165]
[1746031145994,3.828,1766.4,1766.3,6.83855]
[1746031153297,4.86779,1767.1,1766.4,2.83047]
[1746031153497,1.996,1767.0,1766.9,1.13186]
[1746031154100,0.8642,1767.0,1766.9,1.13186]
[1746031154299,4.6922,1767.0,1766.9,2.77626]
[1746031155197,3.828,1767.0,1766.9,2.77626]
[1746031155797,3.828,1767.0,1766.9,7.77626]
[1746031156199,9.37166619,1767.1,1767.0,1.1318]
[1746031156396,9.37166619,1767.1,1767.0,6.9603]
[1746031157303,9.37166619,1767.1,1767.0,10.6963]
[1746031158400,9.37166619,1767.1,1767.0,51.91782964]
[1746031159198,4.595,1767.5,1767.4,1.13154]
[1746031159406,3.828,1767.8,1767.5,2.8286]
[1746031159612,3.828,1767.8,1767.7,1.13135]
[1746031159805,3.828,1767.8,1767.7,4.33915]
[1746031160808,3.828,1767.8,1767.7,6.03745]
[1746031161205,1.24541,1767.8,1767.7,6.03745]
[1746031161503,0.07348,1767.8,1767.7,6.03745]
[1746031161808,9.37166619,1768.1,1768.0,1.13116]
[1746031162009,4.0094,1768.3,1768.2,1.13103]
[1746031162806,5.6655,1768.3,1768.2,1.13103]
[1746031163012,2.4577,1768.3,1768.2,1.13103]
[1746031163208,6.2857,1768.3,1768.2,1.13103]
[1746031164099,3.828,1768.3,1768.2,1.13103]
[1746031164300,3.828,1768.3,1768.2,4.33883]
[1746031166512,3.828,1768.3,1768.2,1.13103]
[1746031166815,3.828,1768.3,1768.0,4.0706]
[1746031167010,2.89194,1768.2,1768.1,1.1311]
[1746031167214,1.7609,1768.2,1767.9,0.8394]
[1746031167511,1.7609,1768.1,1768.0,1.13114]
[1746031168314,6.72,1768.1,1768.0,1.13114]
[1746031168815,2.82791,1768.0,1767.6,3.2078]
[1746031169007,1.13132,1767.8,1767.7,1.13131]
[1746031169203,1.6004,1767.9,1767.6,3.2078]
[1746031169409,10.38541,1768.0,1767.9,1.13122]
[1746031169610,9.2542,1768.0,1767.9,1.13122]
[1746031169811,8.4025,1768.0,1767.9,1.13122]
[1746031170316,4.6685,1768.0,1767.9,1.13122]
[1746031170517,4.6685,1768.0,1767.9,2.88422]
[1746031172309,3.828,1768.0,1767.9,2.88422]
[1746031173018,3.828,1768.0,1767.9,6.09202]
[1746031173518,2.6829,1768.0,1767.9,6.09202]
[1746031174120,0.8247,1768.3,1768.2,1.13103]
[1746031174720,0.8247,1768.3,1768.2,41.93103]
[1746031175208,4.6527,1768.3,1768.2,41.93103]
[1746031176214,4.6527,1768.3,1768.2,1.13103]
[1746031177826,1.13103,1768.2,1768.1,41.93104]
[1746031178123,1.13103,1768.2,1768.1,1.13104]
[1746031179020,5.78373,1768.3,1768.2,1.13103]
[1746031179323,1.95573,1768.3,1768.2,1.13103]
[1746031180122,5.78373,1768.3,1768.2,1.13103]
[1746031180323,5.78373,1768.3,1768.1,1.13104]
[1746031180324,1.13108,1768.2,1768.1,1.13104]
[1746031180523,1.13116,1768.1,1768.0,1.13112]
[1746031180727,2.01336,1768.1,1768.0,1.13112]
[1746031181121,5.84136,1768.1,1768.0,1.13112]
[1746031181625,4.7102,1768.1,1768.0,1.13112]
[1746031181826,5.8413,1768.1,1768.0,1.13112]
[1746031182025,4.7102,1768.1,1768.0,1.13112]
[1746031182228,5.8413,1768.1,1768.0,1.13112]
[1746031182423,1.13122,1768.0,1767.8,42.4335]
[1746031182624,2.82823,1767.8,1767.5,3.2078]
[1746031182822,1.13142,1767.6,1767.5,1.13148]
[1746031183219,5.5749,1767.6,1767.5,1.13148]
[1746031184128,6.70632,1767.6,1767.5,1.13148]
[1746031184329,5.5749,1767.6,1767.5,1.13148]
[1746031185729,6.70632,1767.6,1767.5,1.13148]
[1746031185929,5.5749,1767.6,1767.5,1.13148]
[1746031186230,6.70632,1767.6,1767.5,1.13148]
[1746031186425,5.5749,1767.6,1767.5,1.13148]
[1746031188021,5.5749,1767.6,1767.5,1.92928]
[1746031188422,3.828,1767.6,1767.5,1.92928]
[1746031189431,3.728,1768.1,1768.0,1.13116]
[1746031189733,3.2078,1768.4,1768.3,1.13097]
[1746031189932,4.8183,1768.4,1768.3,1.13097]
[1746031190130,8.6463,1768.4,1768.3,1.13097]
[1746031192031,3.828,1768.4,1768.3,1.13097]
[1746031192436,3.828,1768.4,1768.3,2.82547]
[1746031196133,1e-05,1768.4,1768.3,2.82547]
[1746031196534,1e-05,1768.4,1768.3,3.28716618]
[1746031198133,3.828,1768.5,1768.4,1.1309]
[1746031198434,3.828,1768.5,1768.4,3.5274]
[1746031198636,3.828,1768.5,1768.4,44.3274]
[1746031200628,3.828,1768.5,1768.4,3.5274]
[1746031204636,2.29377,1768.5,1768.4,7.2534]
[1746031204840,1.7082,1769.0,1768.9,1.13058]
[1746031205345,3.828,1769.0,1768.9,1.13058]
[1746031206048,5.5362,1769.0,1768.9,1.13058]
[1746031206344,6.66672,1769.0,1768.9,1.13058]
[1746031206944,13.36251,1769.0,1768.6,3.2078]
[1746031207150,10.65506,1768.9,1768.8,1.13062]
[1746031207349,6.3166,1768.9,1768.8,1.13062]
[1746031207544,12.44718,1768.9,1768.8,1.13062]
[1746031207745,15.65498,1768.9,1768.8,1.13062]
[1746031207948,12.44718,1768.9,1768.8,1.13062]
[1746031208146,16.27518,1768.9,1768.8,1.13062]
[1746031208648,11.27518,1768.9,1768.8,1.13062]
[1746031210242,14.48298,1768.9,1768.8,1.13062]
[1746031210655,11.27518,1768.9,1768.8,1.13062]
[1746031211652,1.13078,1768.6,1768.5,1.13079]
[1746031212154,4.95878,1768.6,1768.5,1.13079]
[1746031213245,3.828,1768.6,1768.5,1.13079]
[1746031213452,4.95878,1768.6,1768.5,1.13079]
[1746031213646,5.5515,1768.6,1768.5,1.13079]
[1746031215459,3.828,1768.6,1768.5,1.13079]
[1746031216155,3.828,1768.6,1768.5,2.79289]
[1746031217556,3.828,1768.6,1768.5,1.13079]
[1746031217757,6.57528,1768.6,1768.5,1.13079]
[1746031218059,3.828,1768.6,1768.5,1.13079]
[1746031218255,3.828,1768.6,1768.5,2.81049]
[1746031221447,3.828,1768.6,1768.5,7.81049]
[1746031221649,2.67638,1768.6,1768.5,13.64049]
[1746031222250,2.4843,1769.0,1768.9,1.13058]
[1746031223052,6.3123,1769.0,1768.9,2.81508]
[1746031223952,6.3123,1769.0,1768.9,1.13058]
[1746031225053,3.828,1769.0,1768.9,2.81508]
[1746031225251,9.37166619,1769.5,1769.3,1.13033]
[1746031225252,0.8249,1769.4,1769.3,1.13033]
[1746031225454,0.8249,1769.4,1769.3,4.33813]
[1746031226058,0.8249,1769.4,1769.3,6.05453]
[1746031226262,3.828,1769.4,1769.3,6.05453]
[1746031226459,3.828,1769.4,1769.3,6.86013]
[1746031227755,3.828,1769.4,1769.3,47.66013]
[1746031228961,3.828,1769.4,1769.3,45.13813]
[1746031229262,3.828,1769.4,1769.3,1.13033]
[1746031229854,4.632,1769.4,1769.3,1.13033]
[1746031230055,8.9701,1769.4,1769.0,6.45056]
[1746031230258,1.7678,1769.3,1769.2,1.13039]
[1746031230459,4.632,1769.4,1769.3,1.13033]
[1746031230656,3.828,1769.4,1769.3,4.33813]
[1746031231057,3.828,1769.4,1769.3,6.80233]
[1746031231650,3.719,1769.8,1769.7,1.13007]
[1746031232054,2.5911,1769.9,1769.8,1.13001]
[1746031232661,2.5911,1769.9,1769.8,2.01581]
[1746031233060,4.5623,1770.1,1770.0,1.12988]
[1746031233267,7.0348,1770.1,1770.0,1.12988]
[1746031233554,13.16462,1770.1,1770.0,1.12988]
[1746031233759,13.16462,1770.1,1769.9,1.6894]
[1746031233961,1.6492,1770.0,1769.9,2.81935]
[1746031234160,5.4772,1770.0,1769.9,2.81935]
[1746031234460,6.60708,1770.0,1769.8,0.8858]
[1746031234660,1.6492,1769.9,1769.6,5.7578]
[1746031234861,1.13003,1769.8,1769.7,1.13007]
[1746031235057,0.8462,1769.8,1769.7,1.13007]
[1746031235363,4.6742,1769.8,1769.7,1.13007]
[1746031235565,6.3221,1769.8,1769.7,1.13007]
[1746031237064,1.13019,1769.6,1769.4,5.22382]
[1746031237255,0.8032,1769.5,1769.3,5.83]
[1746031237454,0.8032,1769.5,1769.2,3.2078]
[1746031237455,3.58132,1769.5,1769.4,1.13027]
[1746031237749,2.4511,1769.5,1769.4,1.13027]
[1746031238163,6.2791,1769.5,1769.4,1.13027]
[1746031238550,6.2791,1769.5,1769.3,1.13028]
[1746031238759,1.6493,1769.4,1769.3,1.13033]
[1746031238961,1.6493,1769.4,1769.2,1.13036]
[1746031239262,5.4773,1769.4,1769.3,1.13033]
[1746031239459,1.13035,1769.3,1769.2,1.13036]
[1746031239762,1.13037,1769.3,1769.2,1.13038]
[1746031240251,4.95837,1769.3,1769.2,1.13038]
[1746031240660,3.828,1769.3,1769.2,1.13038]
[1746031241167,4.95833,1769.3,1769.2,1.13038]
[1746031242360,3.828,1769.3,1769.2,1.13038]
[1746031243053,3.828,1769.3,1769.2,1.94218]
[1746031243254,3.828,1769.3,1769.2,5.14998]
[1746031243454,3.828,1769.3,1769.2,1.94218]
[1746031243861,3.828,1769.3,1769.2,1.13038]
[1746031244656,3.828,1769.3,1769.2,2.77958]